bitfinex/quotes_SOLUSD_20251019
["timestamp","ask_amount","ask_price","bid_price","bid_amount"]
[1760887863749,0.71,190.65,190.62,18.46112124]
[1760887864333,0.71,190.64,190.62,18.46112124]
[1760887864733,10.87647521,190.66,190.62,18.46112124]
[1760887864946,0.71,190.69,190.62,18.46112124]
[1760887865135,10.87647521,190.68,190.62,18.46112124]
[1760887865540,23.59,190.69,190.62,18.46112124]
[1760887866125,22.88,190.69,190.62,18.46112124]
[1760887866336,0.71,190.68,190.62,18.46112124]
[1760887868250,10.87647521,190.68,190.62,18.46112124]
[1760887868459,0.71,190.67,190.62,18.46112124]
[1760887868756,0.71,190.66,190.62,18.46112124]
[1760887869160,10.87647521,190.68,190.62,18.46112124]
[1760887869335,11.58647521,190.68,190.62,18.46112124]
[1760887869750,0.71,190.67,190.62,18.46112124]
[1760887870133,0.71,190.66,190.62,18.46112124]
[1760887870639,0.72,190.65,190.62,5.34602314]
[1760887871038,10.87647521,190.68,190.62,5.34602314]
[1760887871242,0.72,190.64,190.62,5.34602314]
[1760887871444,0.72,190.63,190.62,5.34602314]
[1760887872442,0.72,190.65,190.62,5.34602314]
[1760887872627,0.72,190.64,190.62,5.34602314]
[1760887873132,22.88,190.65,190.62,0.1]
[1760887873338,0.72,190.63,190.62,0.1]
[1760887875558,0.72,190.63,190.62,5.34603924]
[1760887875947,10.87647521,190.64,190.62,5.34603924]
[1760887876246,11.53647521,190.64,190.62,5.34603924]
[1760887876934,0.66,190.63,190.62,5.34603924]
[1760887877129,10.87647521,190.64,190.62,5.34603924]
[1760887877330,11.53647521,190.64,190.62,5.34603924]
[1760887877746,10.87647521,190.64,190.62,5.34603924]
[1760887877948,0.66,190.63,190.62,5.34603924]
[1760887878454,0.66,190.63,190.62,0.1]
[1760887878965,0.66,190.63,190.62,5.34603924]
[1760887879141,10.87647521,190.64,190.62,5.34603924]
[1760887879465,23.54,190.66,190.62,5.34603924]
[1760887879638,11.53647521,190.65,190.62,5.34603924]
[1760887879951,0.66,190.64,190.62,5.34603924]
[1760887881362,0.66,190.68,190.62,18.46113734]
[1760887881751,0.66,190.7,190.62,18.46113734]
[1760887882259,0.66,190.69,190.62,18.46113734]
[1760887882460,23.54,190.69,190.62,18.46113734]
[1760887882964,11.53647521,190.68,190.62,18.46113734]
[1760887883168,22.88,190.65,190.62,5.34603924]
[1760887883472,0.66,190.64,190.62,5.34603924]
[1760887883670,33.75647521,190.61,190.6,0.1]
[1760887884041,34.41647521,190.61,190.6,0.1]
[1760887887860,34.41647521,190.61,190.6,5.34658971]
[1760887888063,33.75647521,190.61,190.6,5.34658971]
[1760887888567,10.87647521,190.65,190.6,5.34658971]
[1760887888761,10.87647521,190.66,190.61,0.1]
[1760887888969,11.53647521,190.66,190.61,0.1]
[1760887889157,5.24359064,190.71,190.61,0.1]
[1760887889469,0.66,190.66,190.61,0.1]
[1760887889672,0.66,190.65,190.6,18.463064]
[1760887890175,0.66,190.64,190.6,18.463064]
[1760887890382,10.87647521,190.67,190.6,18.463064]
[1760887890548,10.87647521,190.65,190.6,18.463064]
[1760887890855,0.66,190.64,190.6,18.463064]
[1760887891045,10.87647521,190.65,190.6,18.463064]
[1760887891249,11.53647521,190.65,190.6,18.463064]
[1760887891448,0.66,190.64,190.6,18.463064]
[1760887891755,0.66,190.63,190.6,18.463064]
[1760887892748,11.53647521,190.65,190.6,18.463064]
[1760887892950,0.66,190.64,190.6,18.463064]
[1760887893248,22.88,190.68,190.6,18.463064]
[1760887893482,10.87647521,190.66,190.6,18.563064]
[1760887893669,0.66,190.65,190.6,18.463064]
[1760887893864,0.66,190.64,190.6,18.463064]
[1760887894176,0.66,190.63,190.6,18.463064]
[1760887894762,0.66,190.65,190.6,18.463064]
[1760887895059,0.66,190.64,190.6,18.463064]
[1760887895264,0.66,190.63,190.6,18.463064]
[1760887895571,0.66,190.62,190.6,18.463064]
[1760887895768,0.66,190.62,190.6,5.34658971]
[1760887896270,10.87647521,190.63,190.6,5.34658971]
[1760887896573,0.66,190.62,190.6,5.34658971]
[1760887898153,5.2446756,190.67,190.6,18.563064]
[1760887898154,10.87647521,190.66,190.6,18.563064]
[1760887898353,0.66,190.65,190.6,18.463064]
[1760887898598,0.66,190.64,190.6,18.463064]
[1760887899960,0.66,190.63,190.6,5.34658971]
[1760887900163,0.66,190.62,190.6,5.34658971]
[1760887900556,0.66,190.64,190.6,5.34658971]
[1760887900758,11.53647521,190.66,190.6,5.44658971]
[1760887900956,11.53647521,190.66,190.6,18.563064]
[1760887901158,10.87647521,190.66,190.6,18.563064]
[1760887901672,0.66,190.67,190.6,18.463064]
[1760887901873,0.66,190.67,190.62,18.36113734]
[1760887902479,10.87647521,190.65,190.62,5.24603924]
[1760887902680,11.53647521,190.65,190.62,5.24603924]
[1760887902868,133.96584174,190.7,190.62,18.36113734]
[1760887903060,10.87647521,190.66,190.62,18.36113734]
[1760887903255,11.53647521,190.66,190.62,18.36113734]
[1760887903676,10.87647521,190.67,190.62,18.46113734]
[1760887903978,10.87647521,190.67,190.62,18.36113734]
[1760887904151,0.69,190.66,190.62,18.36113734]
[1760887904357,0.69,190.65,190.62,18.36113734]
[1760887905663,10.87647521,190.69,190.62,13.1150981]
[1760887905862,11.56647521,190.69,190.63,0.1]
[1760887906474,10.87647521,190.69,190.63,0.1]
[1760887906676,11.56647521,190.69,190.63,0.1]
[1760887906876,11.56647521,190.69,190.62,13.1150981]
[1760887907060,0.69,190.68,190.62,13.1150981]
[1760887907674,0.69,190.68,190.62,18.36113734]
[1760887908368,10.87647521,190.69,190.63,0.1]
[1760887908570,10.87647521,190.71,190.64,26.68]
[1760887908866,0.69,190.7,190.64,26.78]
[1760887909982,0.69,190.7,190.65,18.35824809]
[1760887910165,0.69,190.69,190.65,18.35824809]
[1760887910366,0.69,190.68,190.65,18.35824809]
[1760887911158,0.69,190.72,190.66,0.1]
[1760887911357,10.87647521,190.71,190.65,18.35824809]
[1760887911582,0.69,190.71,190.65,18.35824809]
[1760887912478,0.69,190.71,190.65,45.03824809]
[1760887913566,0.69,190.71,190.65,45.13824809]
[1760887914176,10.87647521,190.69,190.65,18.35824809]
[1760887914381,0.69,190.68,190.65,18.35824809]
[1760887915386,10.87647521,190.69,190.65,13.11303435]
[1760887915583,11.56647521,190.69,190.65,13.11303435]
[1760887915893,10.87647521,190.7,190.65,13.11303435]
[1760887916073,0.69,190.69,190.65,13.11303435]
[1760887916980,0.69,190.68,190.65,13.11303435]
[1760887917167,0.69,190.67,190.65,13.11303435]
[1760887917364,0.69,190.69,190.65,13.11303435]
[1760887917891,0.69,190.68,190.65,13.11303435]
[1760887918187,10.87647521,190.73,190.65,13.11303435]
[1760887918188,0.69,190.7,190.65,13.11303435]
[1760887918389,0.69,190.69,190.65,13.11303435]
[1760887919090,0.69,190.68,190.64,5.24548887]
[1760887919263,0.69,190.67,190.64,5.24548887]
[1760887919466,10.87647521,190.7,190.64,18.35921106]
[1760887919467,0.69,190.69,190.64,18.35921106]
[1760887919677,0.69,190.68,190.64,18.35921106]
[1760887920976,0.69,190.67,190.64,18.35921106]
[1760887921177,0.69,190.66,190.64,5.24548887]
[1760887921693,10.87647521,190.69,190.64,5.24548887]
[1760887921891,0.69,190.66,190.64,5.24548887]
[1760887922294,0.69,190.65,190.64,5.24548887]
[1760887923187,33.75647521,190.69,190.62,18.46113734]
[1760887923188,34.44647521,190.69,190.62,18.46113734]
[1760887923370,23.57,190.69,190.63,0.1]
[1760887923576,23.57,190.71,190.64,26.68]
[1760887923787,23.57,190.71,190.65,0.1]
[1760887924385,22.88,190.73,190.65,0.1]
[1760887924586,0.69,190.73,190.65,0.1]
[1760887925492,10.87647521,190.75,190.66,18.35728521]
[1760887925688,10.87647521,190.75,190.67,0.1]
[1760887925879,0.69,190.76,190.68,26.68]
[1760887926081,23.57,190.76,190.69,0.1]
[1760887926591,23.57,190.76,190.68,26.68]
[1760887926794,0.69,190.75,190.68,26.68]
[1760887927172,0.69,190.74,190.68,26.68]
[1760887927599,0.69,190.74,190.69,18.35439718]
[1760887928006,0.69,190.73,190.69,18.35439718]
[1760887928780,0.69,190.72,190.69,18.35439718]
[1760887929005,0.69,190.71,190.69,18.35439718]
[1760887929807,0.69,190.73,190.69,18.35439718]
[1760887930185,0.69,190.72,190.69,18.35439718]
[1760887930380,0.68,190.71,190.69,18.35439718]
[1760887930814,10.87647521,190.75,190.69,18.35439718]
[1760887930987,0.68,190.71,190.69,18.35439718]
[1760887932213,0.68,190.7,190.69,18.35439718]
[1760887933282,10.87647521,190.75,190.69,18.35439718]
[1760887933504,0.68,190.74,190.69,18.35439718]
[1760887933699,0.68,190.73,190.69,18.35439718]
[1760887934092,10.87647521,190.75,190.69,18.35439718]
[1760887934410,0.69,190.74,190.69,18.35439718]
[1760887934580,0.69,190.73,190.69,18.35439718]
[1760887935510,0.69,190.72,190.69,18.35439718]
[1760887935704,10.87647521,190.75,190.69,18.35439718]
[1760887936007,0.69,190.76,190.69,18.45439718]
[1760887936208,0.69,190.78,190.7,0.1]
[1760887936410,0.69,190.78,190.71,26.66]
[1760887936718,0.69,190.77,190.71,26.66]
[1760887937385,22.88,190.8,190.72,18.35151006]
[1760887937591,0.69,190.8,190.73,0.1]
[1760887937785,22.88,190.79,190.74,26.66]
[1760887937997,23.57,190.79,190.74,26.66]
[1760887938506,0.69,190.78,190.74,26.66]
[1760887939802,0.69,190.78,190.75,5.24246395]
[1760887940215,0.69,190.77,190.75,5.24246395]
[1760887940714,0.69,190.82,190.75,18.34862384]
[1760887941012,0.69,190.82,190.76,0.1]
[1760887941221,0.69,190.82,190.77,26.66]
[1760887941386,0.69,190.82,190.77,26.76]
[1760887941717,22.88,190.83,190.77,26.76]
[1760887942215,11.56647521,190.86,190.78,18.34573854]
[1760887942425,0.69,190.86,190.78,18.44573854]
[1760887942591,0.69,190.86,190.79,0.1]
[1760887942903,0.69,190.86,190.8,26.66]
[1760887943107,0.89,190.85,190.8,26.66]
[1760887943490,0.89,190.85,190.8,26.76]
[1760887944411,0.89,190.85,190.81,18.34285414]
[1760887945106,0.2,190.85,190.81,18.34285414]
[1760887945313,0.2,190.85,190.82,0.1]
[1760887945813,0.2,190.85,190.83,26.66]
[1760887946394,0.89,190.85,190.84,5.23999161]
[1760887947112,0.2,190.85,190.84,5.23999161]
[1760887953202,0.89,190.85,190.84,5.23999161]
[1760887955125,0.89,190.85,190.82,26.66]
[1760887955298,0.69,190.84,190.82,26.66]
[1760887956190,0.69,190.84,190.83,5.2402662]
[1760887956390,0.2,190.85,190.83,5.2402662]
[1760887958004,0.2,190.85,190.84,0.1]
[1760887958403,0.2,190.85,190.83,5.2402662]
[1760887960014,0.2,190.85,190.83,5.3402662]
[1760887960525,0.2,190.85,190.83,5.2402662]
[1760887965328,0.9,190.85,190.83,5.2402662]
[1760887966142,0.7,190.84,190.83,5.2402662]
[1760887966425,0.7,190.84,190.82,5.24051304]
[1760887966727,0.7,190.83,190.82,5.24051304]
[1760887967626,0.7,190.83,190.81,5.24081547]
[1760887968128,0.7,190.82,190.81,5.24081547]
[1760887968333,0.7,190.83,190.81,18.34285414]
[1760887968707,0.9,190.85,190.81,18.34285414]
[1760887969003,0.7,190.84,190.81,18.34285414]
[1760887969215,0.7,190.83,190.81,18.34285414]
[1760887970010,0.7,190.82,190.81,18.34285414]
[1760887972814,0.7,190.82,190.81,5.24081547]
[1760887973015,10.87647521,190.81,190.67,15.97815796]
[1760887973238,22.88,190.78,190.68,26.74]
[1760887973424,0.7,190.77,190.68,13.11097126]
[1760887973625,11.57647521,190.76,190.68,13.11097126]
[1760887973911,0.7,190.75,190.7,5.24383848]
[1760887974128,0.7,190.74,190.7,5.24383848]
[1760887974338,33.75647521,190.77,190.7,5.24383848]
[1760887974339,0.7,190.73,190.7,5.24383848]
[1760887974523,0.7,190.72,190.7,5.24383848]
[1760887974836,0.7,190.71,190.7,5.24383848]
[1760887975010,33.75647521,190.77,190.7,5.24383848]
[1760887975219,0.7,190.76,190.7,18.3534347]
[1760887975421,0.7,190.75,190.7,18.3534347]
[1760887975641,0.7,190.74,190.7,18.3534347]
[1760887975827,0.7,190.73,190.7,18.3534347]
[1760887976020,0.7,190.72,190.7,18.3534347]
[1760887976219,0.7,190.71,190.7,18.3534347]
[1760887976518,0.7,190.71,190.7,5.24383848]
[1760887977117,0.7,190.71,190.68,5.2441326]
[1760887977323,0.7,190.7,190.65,5.24521374]
[1760887977521,0.7,190.69,190.66,26.64]
[1760887977744,0.7,190.68,190.66,26.64]
[1760887978124,0.7,190.68,190.67,5.24466355]
[1760887978744,10.87647521,190.73,190.67,5.24466355]
[1760887978943,10.87647521,190.71,190.67,5.24466355]
[1760887979350,0.7,190.7,190.67,5.24466355]
[1760887979523,10.87647521,190.71,190.67,5.24466355]
[1760887979726,0.7,190.69,190.67,5.24466355]
[1760887980019,10.87647521,190.71,190.67,5.24466355]
[1760887980224,0.7,190.7,190.67,5.24466355]
[1760887980443,0.7,190.69,190.67,5.24466355]
[1760887980642,0.7,190.68,190.66,31.88475265]
[1760887981340,22.88,190.72,190.67,0.1]
[1760887981540,0.7,190.74,190.67,0.1]
[1760887982042,23.58,190.74,190.68,18.35535976]
[1760887982242,0.7,190.73,190.68,18.35535976]
[1760887982542,0.7,190.72,190.68,18.35535976]
[1760887982747,0.7,190.72,190.69,26.66]
[1760887983423,0.7,190.72,190.7,5.24383848]
[1760887983919,0.7,190.72,190.7,31.90383848]
[1760887984421,0.7,190.71,190.7,31.90383848]
[1760887984641,0.7,190.71,190.7,26.66]
[1760887984848,0.7,190.71,190.63,0.1]
[1760887984849,0.7,190.71,190.66,26.66]
[1760887985146,0.7,190.7,190.66,26.66]
[1760887985332,0.7,190.69,190.66,26.66]
[1760887985523,0.7,190.68,190.66,26.66]
[1760887986052,0.7,190.68,190.67,5.24466355]
[1760887988145,0.7,190.68,190.62,5.24603924]
[1760887988448,0.7,190.67,190.62,5.24603924]
[1760887988667,0.7,190.66,190.62,5.24603924]
[1760887988826,0.7,190.65,190.62,5.24603924]
[1760887989228,0.7,190.68,190.62,18.46113734]
[1760887989632,0.7,190.67,190.62,18.36113734]
[1760887989832,10.87647521,190.69,190.62,18.36113734]
[1760887990053,0.7,190.68,190.62,18.36113734]
[1760887990551,0.67,190.72,190.63,0.1]
[1760887990756,0.67,190.72,190.64,26.66]
[1760887991052,0.67,190.72,190.65,0.1]
[1760887991831,0.67,190.72,190.66,18.35728521]
[1760887992031,10.87647521,190.74,190.67,26.66]
[1760887992254,0.67,190.73,190.67,26.66]
[1760887992559,0.67,190.72,190.67,26.66]
[1760887993358,0.67,190.75,190.68,0.1]
[1760887993850,0.67,190.75,190.68,18.35535976]
[1760887994049,0.69,190.74,190.68,18.35535976]
[1760887994755,0.69,190.73,190.68,18.35535976]
[1760887994954,10.87647521,190.76,190.68,18.35535976]
[1760887995257,0.69,190.72,190.68,18.35535976]
[1760887995755,0.69,190.74,190.68,18.35535976]
[1760887997253,0.69,190.74,190.68,18.42535976]
[1760887997452,2.74074716,190.78,190.69,0.07]
[1760887997641,11.56647521,190.78,190.7,26.66]
[1760887997839,0.69,190.77,190.7,26.66]
[1760887998730,0.69,190.77,190.71,18.35247233]
[1760887999052,0.69,190.77,190.71,18.42247233]
[1760887999367,23.57,190.79,190.71,18.42247233]
[1760887999662,0.69,190.78,190.71,18.42247233]
[1760888000158,2.74021202,190.83,190.72,0.07]
[1760888000342,0.69,190.84,190.74,22.88]
[1760888000546,0.69,190.84,190.76,18.34766197]
[1760888000939,0.69,190.84,190.77,0.07]
[1760888005067,0.2,190.85,190.77,0.07]
[1760888005068,0.2,190.85,190.77,22.95]
[1760888005242,0.2,190.85,190.78,15.82340667]
[1760888005745,0.2,190.85,190.79,0.07]
[1760888006533,0.2,190.85,190.79,18.41477697]
[1760888007665,0.69,190.84,190.79,18.34477697]
[1760888007964,0.69,190.83,190.79,18.34477697]
[1760888008147,0.69,190.82,190.79,18.34477697]
[1760888008838,0.69,190.84,190.79,13.10341212]
[1760888010267,0.69,190.83,190.79,13.10341212]
[1760888010561,7.15700444,190.8,190.79,13.10341212]
[1760888010953,7.84700444,190.8,190.79,13.10341212]
[1760888011549,7.84700444,190.8,190.76,26.21094569]
[1760888011743,7.15700444,190.77,190.76,26.21094569]
[1760888016641,7.15700444,190.77,190.75,18.34862384]
[1760888016849,7.84700444,190.76,190.75,5.24246395]
[1760888017171,7.84700444,190.76,190.69,30.10700444]
[1760888017348,7.15700444,190.7,190.69,22.95]
[1760888017542,7.15700444,190.7,190.69,0.07]
[1760888017743,7.15700444,190.7,190.68,41.98349642]
[1760888018064,7.15700444,190.7,190.68,26.22181308]
[1760888018464,7.15700444,190.69,190.68,26.22181308]
[1760888018650,11.46621465,190.69,190.68,26.22181308]
[1760888020353,9.17297172,190.69,190.68,26.29181308]
[1760888020565,0.69,190.75,190.68,26.29181308]
[1760888020869,2.29324293,190.69,190.68,26.29181308]
[1760888021052,2.29324293,190.69,190.68,49.17181308]
[1760888021975,0.69,190.75,190.68,58.3447848]
[1760888022159,2.29324293,190.69,190.68,76.70014456]
[1760888022953,4.58648586,190.69,190.68,67.52717284]
[1760888023149,4.58648586,190.69,190.68,67.45717284]
[1760888023750,2.29324293,190.69,190.68,67.45717284]
[1760888023957,4.58648586,190.69,190.68,67.45717284]
[1760888024377,9.17297172,190.7,190.68,67.45717284]
[1760888024556,4.58648586,190.69,190.68,67.45717284]
[1760888024756,2.29324293,190.69,190.68,67.45717284]
[1760888024958,4.58648586,190.69,190.68,67.45717284]
[1760888025351,10.87647521,190.8,190.68,67.52717284]
[1760888025553,9.17297172,190.7,190.69,0.07]
[1760888025775,11.46621465,190.7,190.69,0.07]
[1760888026662,0.7,190.75,190.69,0.07]
[1760888026864,11.46621465,190.7,190.69,0.07]
[1760888027060,0.7,190.75,190.69,0.07]
[1760888027264,0.7,190.75,190.7,18.3534347]
[1760888027472,11.46621465,190.71,190.7,18.3534347]
[1760888028765,0.7,190.76,190.7,44.64262714]
[1760888028961,0.7,190.76,190.7,18.4234347]
[1760888029157,9.17297172,190.71,190.7,55.86990991]
[1760888029379,0.7,190.79,190.74,18.34958581]
[1760888029687,0.7,190.78,190.74,18.34958581]
[1760888030478,0.7,190.8,190.74,18.34958581]
[1760888031189,11.46621465,190.75,190.74,18.34958581]
[1760888031384,0.7,190.8,190.74,29.22606102]
[1760888031688,11.46621465,190.75,190.74,29.22606102]
[1760888031865,0.7,190.8,190.74,18.34958581]
[1760888032067,11.46621465,190.75,190.74,29.81580046]
[1760888032264,9.87297172,190.8,190.74,29.88580046]
[1760888032476,2.29324293,190.75,190.74,29.81580046]
[1760888032982,2.29324293,190.75,190.74,29.88580046]
[1760888033990,9.87297172,190.8,190.77,22.88]
[1760888034167,2.29324293,190.78,190.77,22.88]
[1760888034572,2.99324293,190.78,190.77,22.88]
[1760888034769,2.29324293,190.78,190.77,22.88]
[1760888035393,2.29324293,190.78,190.77,28.12191434]
[1760888037294,2.99324293,190.78,190.77,28.12191434]
[1760888037800,2.29324293,190.78,190.77,67.8667002]
[1760888038191,2.29324293,190.78,190.77,67.9367002]
[1760888038372,0.2,190.85,190.77,67.9367002]
[1760888038373,0.9,190.85,190.77,67.9367002]
[1760888038570,0.9,190.85,190.78,0.07]
[1760888038571,9.17297172,190.8,190.78,0.07]
[1760888038870,11.46621465,190.8,190.78,0.07]
[1760888039070,11.46621465,190.8,190.79,9.17297172]
[1760888039296,11.46621465,190.8,190.79,32.05297172]
[1760888039485,0.7,190.84,190.79,32.05297172]
[1760888039677,0.7,190.83,190.81,18.34285414]
[1760888040288,0.2,190.85,190.81,18.34285414]
[1760888040289,0.7,190.82,190.81,18.34285414]
[1760888040487,0.7,190.84,190.81,18.34285414]
[1760888040697,11.46621465,190.82,190.81,18.34285414]
[1760888041294,12.16621465,190.82,190.81,18.34285414]
[1760888041502,12.16621465,190.82,190.79,5.24125904]
[1760888041705,11.46621465,190.8,190.78,5.24163958]
[1760888041874,12.16621465,190.79,190.78,5.24163958]
[1760888042194,12.16621465,190.79,190.78,18.34573854]
[1760888042718,12.16621465,190.79,190.78,5.24163958]
[1760888043894,12.16621465,190.79,190.75,13.10555001]
[1760888044088,11.46621465,190.76,190.75,13.10555001]
[1760888044274,12.16621465,190.76,190.75,13.10555001]
[1760888048795,12.16621465,190.76,190.72,18.35151006]
[1760888048991,9.17297172,190.73,190.72,18.35151006]
[1760888050912,9.85297172,190.73,190.72,18.35151006]
[1760888051407,9.85297172,190.73,190.72,5.24328859]
[1760888051782,9.17297172,190.73,190.72,5.24328859]
[1760888051986,9.85297172,190.73,190.72,5.24328859]
[1760888052996,9.85297172,190.73,190.69,13.11013374]
[1760888053189,11.46621465,190.7,190.69,13.11013374]
[1760888054111,11.46621465,190.7,190.69,13.18013374]
[1760888054278,0.2,190.85,190.71,22.88]
[1760888054485,0.71,190.79,190.72,26.71]
[1760888054683,33.75647521,190.84,190.72,26.71]
[1760888054905,0.71,190.83,190.72,26.71]
[1760888055094,0.71,190.82,190.73,18.35054789]
[1760888055303,0.71,190.81,190.73,18.35054789]
[1760888055610,11.46621465,190.74,190.73,18.35054789]
[1760888056901,38.99651402,190.84,190.73,18.35054789]
[1760888056902,0.71,190.78,190.73,18.35054789]
[1760888057106,33.75647521,190.84,190.73,18.35054789]
[1760888057303,0.71,190.78,190.73,18.35054789]
[1760888057506,11.46621465,190.74,190.73,18.35054789]
[1760888059701,0.71,190.77,190.73,18.35054789]
[1760888059914,11.46621465,190.74,190.73,18.35054789]
[1760888064327,11.46621465,190.74,190.72,52.85626179]
[1760888064328,12.17621465,190.74,190.72,5.24324587]
[1760888064529,0.71,190.73,190.72,5.24324587]
[1760888064838,11.46621465,190.74,190.72,5.24324587]
[1760888065017,12.17621465,190.74,190.72,31.88324587]
[1760888066930,0.71,190.73,190.72,31.88324587]
[1760888067097,12.17621465,190.73,190.72,31.88324587]
[1760888067296,12.17621465,190.73,190.72,5.24324587]
[1760888068023,12.17621465,190.73,190.71,5.24356352]
[1760888068231,12.17621465,190.72,190.71,5.24356352]
[1760888072324,12.17621465,190.72,190.69,18.35430006]
[1760888072671,11.46621465,190.7,190.69,18.35430006]
[1760888073152,12.17621465,190.7,190.69,18.35430006]
[1760888076438,11.46621465,190.7,190.69,18.35430006]
[1760888077035,12.17621465,190.7,190.69,18.35430006]
[1760888077241,11.46621465,190.7,190.69,18.35430006]
[1760888078142,12.17621465,190.7,190.69,18.35430006]
[1760888080250,11.46621465,190.7,190.69,18.35430006]
[1760888080665,0.71,190.72,190.69,18.35430006]
[1760888080864,7.16416678,190.7,190.69,18.35430006]
[1760888086161,7.88416678,190.7,190.69,18.35430006]
[1760888087154,7.16416678,190.7,190.69,18.35430006]
[1760888091858,7.88416678,190.7,190.69,18.35430006]
[1760888092960,7.88416678,190.7,190.69,5.24411348]
[1760888093965,7.88416678,190.7,190.66,26.64]
[1760888094155,5.24276406,190.74,190.66,26.64]
[1760888094156,7.16416678,190.67,190.66,26.64]
[1760888094343,7.88416678,190.67,190.66,26.64]
[1760888094864,7.88416678,190.67,190.66,31.88493863]
[1760888098245,7.88416678,190.67,190.66,5.24493863]
[1760888099369,7.88416678,190.67,190.65,5.24521374]
[1760888099555,7.88416678,190.66,190.65,18.35824809]
[1760888102071,7.88416678,190.66,190.65,5.24521374]
[1760888102869,7.88416678,190.66,190.64,5.24548887]
[1760888103064,7.16416678,190.65,190.64,5.24548887]
[1760888103569,7.88416678,190.65,190.64,5.24548887]
[1760888107277,7.16416678,190.65,190.64,5.24548887]
[1760888107953,7.16416678,190.65,190.64,45.06921106]
[1760888108352,7.16416678,190.65,190.64,44.99921106]
[1760888108945,0.72,190.69,190.64,44.99921106]
[1760888109160,22.88,190.75,190.64,45.06921106]
[1760888109374,0.72,190.71,190.65,0.07]
[1760888109753,0.72,190.71,190.64,44.99921106]
[1760888109975,0.72,190.7,190.64,44.99921106]
[1760888110571,7.16416678,190.65,190.64,18.35921106]
[1760888110768,0.72,190.69,190.64,44.99921106]
[1760888111073,0.72,190.69,190.64,45.06921106]
[1760888111280,22.88,190.75,190.64,45.06921106]
[1760888111281,7.16416678,190.65,190.64,44.99921106]
[1760888111854,0.69,190.7,190.64,60.83420751]
[1760888112055,7.16416678,190.65,190.64,71.64068272]
[1760888112467,0.69,190.71,190.64,60.76420751]
[1760888112670,0.69,190.71,190.65,26.71]
[1760888112865,7.16416678,190.66,190.65,26.71]
[1760888113277,7.16416678,190.66,190.65,31.95521374]
[1760888113450,0.69,190.71,190.65,45.06824809]
[1760888113654,7.16416678,190.66,190.65,45.06824809]
[1760888113867,0.69,190.71,190.65,45.06824809]
[1760888114072,7.16416678,190.66,190.65,45.06824809]
[1760888114374,0.69,190.71,190.65,45.06824809]
[1760888115077,7.16416678,190.66,190.65,45.06824809]
[1760888115259,7.16416678,190.66,190.65,60.83241613]
[1760888115655,7.16416678,190.66,190.65,145.04241613]
[1760888115856,7.16416678,190.66,190.65,102.63824809]
[1760888116067,7.16416678,190.66,190.65,129.27824809]
[1760888116268,7.16416678,190.66,190.65,140.1547233]
[1760888116469,0.72,190.69,190.65,140.1547233]
[1760888116968,7.16416678,190.66,190.65,140.1547233]
[1760888117371,0.72,190.69,190.65,140.1547233]
[1760888117573,7.16416678,190.66,190.65,140.1547233]
[1760888117773,0.72,190.69,190.65,129.27824809]
[1760888117959,7.16416678,190.66,190.65,129.27824809]
[1760888118377,0.72,190.69,190.65,129.27824809]
[1760888118966,7.16416678,190.66,190.65,129.27824809]
[1760888119386,0.72,190.69,190.65,129.27824809]
[1760888119596,7.16416678,190.66,190.65,129.27824809]
[1760888119886,3.58208339,190.66,190.65,129.27824809]
[1760888120058,3.58208339,190.66,190.65,83.71241613]
[1760888121595,0.72,190.74,190.65,83.71241613]
[1760888121784,3.58208339,190.7,190.66,0.07]
[1760888122085,3.58208339,190.67,190.66,61.47]
[1760888122558,3.58208339,190.7,190.66,61.4]
[1760888122760,0.72,190.73,190.66,61.4]
[1760888122979,3.58208339,190.7,190.67,15.76251149]
[1760888123171,3.58208339,190.7,190.68,26.64]
[1760888123804,4.30208339,190.7,190.69,5.24411348]
[1760888124174,7.88416678,190.7,190.69,5.24411348]